bitfinex/quotes_BTCUSD_20230905
["timestamp","ask_amount","ask_price","bid_price","bid_amount"]
[1693926208523,3.55588999,25732.0,25731.0,0.003]
[1693926208763,3.26204412,25732.0,25731.0,0.003]
[1693926209242,3.26204412,25732.0,25726.0,0.777404]
[1693926209243,0.08,25729.0,25726.0,0.777404]
[1693926209495,0.1033,25728.0,25726.0,1.554818]
[1693926210462,0.02,25729.0,25726.0,1.45740234]
[1693926210920,0.022,25728.0,25726.0,1.45940234]
[1693926212216,0.046,25728.0,25726.0,1.46140234]
[1693926212477,0.024,25728.0,25726.0,2.23682534]
[1693926212680,0.30023455,25728.0,25726.0,2.23882534]
[1693926213582,0.30023455,25728.0,25726.0,2.23682534]
[1693926213824,0.32223455,25728.0,25726.0,2.23882534]
[1693926215310,0.4297357,25727.0,25726.0,0.004]
[1693926216280,0.4297357,25727.0,25726.0,0.002]
[1693926216519,0.02,25726.0,25725.0,1.554877]
[1693926216762,0.22102115,25726.0,25725.0,1.554877]
[1693926216987,0.3354162,25726.0,25725.0,0.777453]
[1693926217166,0.3354162,25726.0,25724.0,1.554938]
[1693926217167,0.4387162,25726.0,25724.0,1.554938]
[1693926218229,0.4397162,25726.0,25724.0,1.554938]
[1693926218846,0.4187162,25726.0,25724.0,1.554938]
[1693926219025,0.4197162,25726.0,25725.0,0.004]
[1693926219351,0.4197162,25726.0,25724.0,1.562938]
[1693926219546,0.08278162,25725.0,25724.0,1.562938]
[1693926219758,0.08278162,25725.0,25724.0,1.567938]
[1693926219933,0.08278162,25725.0,25724.0,1.554938]
[1693926220666,0.34392668,25725.0,25724.0,1.554939]
[1693926220929,2.18579176,25728.0,25724.0,1.554939]
[1693926220930,0.194,25728.0,25724.0,1.70959711]
[1693926221144,0.06,25733.0,25725.0,0.54130338]
[1693926221364,0.001,25726.0,25725.0,1.41164338]
[1693926221588,0.2470976,25733.0,25726.0,0.02]
[1693926221806,0.2470976,25733.0,25728.0,3.10944]
[1693926222019,0.9892,25734.0,25732.0,0.1033]
[1693926222290,0.29664466,25735.0,25733.0,2.58959411]
[1693926222503,0.09282735,25738.0,25734.0,0.25795811]
[1693926222731,0.23120498,25737.0,25736.0,0.1033]
[1693926222940,0.27392251,25737.0,25736.0,1.03505111]
[1693926223147,0.27392251,25737.0,25736.0,1.657514]
[1693926223352,0.27392251,25737.0,25736.0,2.434635]
[1693926223689,0.06,25740.0,25736.0,2.434635]
[1693926223888,0.06,25740.0,25736.0,2.58929311]
[1693926224315,0.06,25740.0,25736.0,1.554214]
[1693926224640,0.024,25737.0,25736.0,0.882393]
[1693926225082,0.024,25737.0,25736.0,1.659514]
[1693926225291,0.024,25737.0,25736.0,1.659542]
[1693926225491,0.024,25737.0,25736.0,1.661542]
[1693926225881,0.28614005,25739.0,25736.0,1.657542]
[1693926226308,0.024,25737.0,25736.0,1.661542]
[1693926226524,0.024,25737.0,25736.0,1.556242]
[1693926226908,0.024,25737.0,25736.0,1.558242]
[1693926226909,0.048,25737.0,25736.0,1.558242]
[1693926227315,0.048,25737.0,25736.0,2.335363]
[1693926227501,0.024,25737.0,25736.0,2.333363]
[1693926227707,0.024,25737.0,25736.0,2.19276835]
[1693926228283,0.024,25737.0,25736.0,2.19076835]
[1693926228514,0.048,25737.0,25736.0,2.19276835]
[1693926231033,0.30194843,25737.0,25736.0,2.19276835]
[1693926231273,0.30194843,25737.0,25736.0,0.63852635]
[1693926234388,0.048,25737.0,25736.0,0.004]
[1693926234594,1.12167583,25737.0,25736.0,0.004]
[1693926239328,1.22497583,25737.0,25736.0,0.004]
[1693926239673,1.26985074,25737.0,25736.0,0.004]
[1693926239778,1.56781161,25737.0,25736.0,0.004]
[1693926241481,0.048,25737.0,25736.0,2.09954538]
[1693926241709,0.048,25737.0,25736.0,2.97996638]
[1693926241926,0.048,25737.0,25736.0,3.28200827]
[1693926242151,0.048,25737.0,25736.0,3.27774827]
[1693926242354,0.048,25737.0,25736.0,3.66475354]
[1693926242590,0.048,25737.0,25736.0,3.66877354]
[1693926242799,0.048,25737.0,25736.0,3.66367354]
[1693926243012,0.2859361,25743.0,25736.0,3.65979354]
[1693926243219,0.1549,25745.0,25741.0,0.1033]
[1693926243435,0.23984902,25745.0,25742.0,2.48546011]
[1693926243634,0.27048162,25744.0,25742.0,2.48546011]
[1693926243902,0.27048162,25744.0,25742.0,2.330802]
[1693926244913,0.29448162,25744.0,25742.0,1.555868]
[1693926245141,0.31848162,25744.0,25742.0,1.557868]
[1693926246169,0.048,25744.0,25742.0,1.557868]
[1693926246581,0.048,25744.0,25742.0,2.334808]
[1693926247619,0.048,25744.0,25742.0,2.490261]
[1693926251088,0.02792704,25743.0,25742.0,2.490261]
[1693926251285,0.02792704,25743.0,25742.0,0.004]
[1693926251286,1.88624042,25743.0,25742.0,0.004]
[1693926251509,3.17417527,25743.0,25742.0,0.004]
[1693926251928,0.08,25742.0,25736.0,0.77712]
[1693926252137,0.13465811,25741.0,25738.0,0.777039]
[1693926252353,0.85974527,25742.0,25738.0,0.8089862]
[1693926252530,1.17757389,25742.0,25738.0,1.5860472]
[1693926252975,1.17757389,25742.0,25739.0,0.16520321]
[1693926252976,0.12501875,25741.0,25739.0,0.16520321]
[1693926253383,0.14901875,25741.0,25739.0,0.16520321]
[1693926253793,0.12501875,25741.0,25739.0,0.16520321]
[1693926254328,0.14901875,25741.0,25739.0,0.16720321]
[1693926254556,0.14901875,25741.0,25739.0,0.002]
[1693926254767,0.2282527,25741.0,25739.0,0.004]
[1693926255552,0.1033,25740.0,25739.0,0.004]
[1693926255890,0.25103212,25740.0,25739.0,0.004]
[1693926256541,0.25103212,25740.0,25739.0,0.002]
[1693926256921,0.27503212,25740.0,25739.0,0.002]
[1693926257153,1.45990732,25740.0,25739.0,0.004]
[1693926258757,0.68290732,25740.0,25739.0,0.004]
[1693926259836,1.45990732,25740.0,25739.0,0.004]
[1693926260519,2.0891752,25740.0,25739.0,0.004]
[1693926260723,2.24216719,25740.0,25739.0,0.004]
[1693926261684,2.2826752,25740.0,25739.0,0.004]
[1693926262191,2.43320325,25740.0,25739.0,0.004]
[1693926264954,2.2826752,25740.0,25739.0,0.004]
[1693926265157,2.4242889,25740.0,25739.0,0.004]
[1693926265462,2.2826752,25740.0,25739.0,0.004]
[1693926266489,2.40755227,25740.0,25739.0,0.004]
[1693926267791,2.50068485,25740.0,25739.0,0.004]
[1693926268670,2.40755227,25740.0,25739.0,0.004]
[1693926270694,2.02367707,25740.0,25739.0,0.004]
[1693926272126,0.048,25740.0,25739.0,1.55806]
[1693926274028,0.048,25740.0,25739.0,2.41704985]
[1693926279885,0.14113697,25740.0,25739.0,2.41704985]
[1693926280272,0.14113697,25740.0,25739.0,2.33509]
[1693926280486,0.26619736,25740.0,25739.0,1.55806]
[1693926280900,0.17306039,25740.0,25739.0,1.55806]
[1693926283449,0.048,25740.0,25739.0,1.55806]
[1693926284435,0.048,25740.0,25739.0,1.60154757]
[1693926284642,0.048,25740.0,25739.0,2.37857757]
[1693926285449,0.37397941,25740.0,25739.0,2.37857757]
[1693926287011,0.37397941,25740.0,25739.0,2.66098176]
[1693926287217,0.37397941,25740.0,25739.0,2.59108569]
[1693926291180,0.2809119,25740.0,25739.0,2.59108569]
[1693926291397,0.18770546,25740.0,25739.0,2.59108569]
[1693926292045,0.18770546,25740.0,25739.0,2.48778569]
[1693926292872,0.18270546,25740.0,25739.0,2.48778569]
[1693926297187,0.18270546,25740.0,25739.0,2.50847]
[1693926297403,0.18270546,25740.0,25739.0,2.50721]
[1693926297618,0.18270546,25740.0,25739.0,2.50859]
[1693926297830,0.18270546,25740.0,25739.0,2.51417]
[1693926298008,0.18270546,25740.0,25739.0,2.51297]
[1693926298256,0.18270546,25740.0,25739.0,2.89931527]
[1693926298457,0.18270546,25740.0,25739.0,2.89673527]
[1693926298674,0.18270546,25740.0,25739.0,2.95494729]
[1693926300149,0.18270546,25740.0,25739.0,2.82503527]
[1693926300676,0.18270546,25740.0,25739.0,2.95626676]
[1693926301527,0.18270546,25740.0,25739.0,2.82503527]
[1693926301729,0.18270546,25740.0,25739.0,3.58050054]
[1693926301935,4.6e-07,25740.0,25739.0,5.36205433]
[1693926302138,4.6e-07,25740.0,25739.0,5.36103433]
[1693926302362,4.6e-07,25740.0,25739.0,5.35545433]
[1693926302572,0.41911638,25741.0,25740.0,0.18]
[1693926302774,0.18627395,25741.0,25740.0,3.6154854]
[1693926303000,0.41911638,25744.0,25743.0,0.16]
[1693926303211,0.41911638,25744.0,25743.0,3.79623597]
[1693926303435,0.18627395,25745.0,25743.0,3.79623597]
[1693926303639,0.18627395,25745.0,25744.0,0.1033]
[1693926303849,0.18627395,25745.0,25744.0,2.73394]
[1693926304461,0.18627395,25745.0,25744.0,3.12058527]
[1693926304666,0.18627395,25745.0,25744.0,2.889368]
[1693926304869,0.022,25745.0,25744.0,2.891368]
[1693926305803,0.12712702,25745.0,25744.0,2.93416554]
[1693926307533,0.12712702,25745.0,25744.0,2.790068]
[1693926308648,0.034,25745.0,25744.0,2.82145596]
[1693926310734,0.034,25745.0,25744.0,3.31140123]
[1693926310944,0.12709549,25745.0,25744.0,3.6980465]
[1693926311290,0.12709549,25745.0,25744.0,3.76207854]
[1693926311497,0.12709549,25745.0,25744.0,3.83786867]
[1693926312033,0.12709549,25745.0,25744.0,3.66665854]
[1693926312238,0.12709549,25745.0,25744.0,3.28001327]
[1693926312668,0.12709549,25745.0,25744.0,3.34535327]
[1693926312873,0.12709549,25745.0,25744.0,3.34835327]
[1693926313209,0.12709549,25745.0,25744.0,3.53294036]
[1693926313379,0.12709549,25745.0,25744.0,3.36619327]
[1693926313649,0.12709549,25745.0,25744.0,3.45078243]
[1693926314319,0.12709549,25745.0,25744.0,3.30001327]
[1693926314744,0.12709549,25745.0,25744.0,3.45139025]
[1693926316413,0.12709549,25745.0,25744.0,3.06474498]
[1693926316595,0.034,25745.0,25744.0,2.96144498]
[1693926317423,0.034,25745.0,25744.0,1.713188]
[1693926317625,0.17694428,25745.0,25744.0,1.713188]
[1693926318245,0.17694428,25745.0,25744.0,1.55776]
[1693926319256,0.034,25745.0,25744.0,1.55776]
[1693926319815,0.034,25745.0,25744.0,2.33464]
[1693926320224,0.034,25745.0,25744.0,1.55776]
[1693926320735,0.034,25745.0,25744.0,2.33464]
[1693926320890,0.034,25745.0,25744.0,1.55776]
[1693926321586,0.17800222,25745.0,25744.0,0.78088]
[1693926321793,0.29510259,25745.0,25744.0,0.78088]
[1693926322036,0.15110037,25745.0,25744.0,0.78088]
[1693926322503,0.15110037,25745.0,25744.0,1.55776]
[1693926323332,0.15110037,25745.0,25744.0,1.67330957]
[1693926323731,0.034,25745.0,25744.0,1.67330957]
[1693926324421,0.034,25745.0,25744.0,2.45018957]
[1693926326064,0.034,25745.0,25744.0,2.45018957]
[1693926327814,0.034,25745.0,25744.0,1.67330957]
[1693926328169,0.17144464,25745.0,25744.0,0.78088]
[1693926328379,0.17144464,25745.0,25744.0,0.004]
[1693926328800,0.17144464,25745.0,25744.0,0.78088]
[1693926330358,0.3562593,25745.0,25744.0,0.78088]
[1693926330989,0.3562593,25745.0,25744.0,0.004]
[1693926331909,0.3562593,25745.0,25744.0,0.78088]
[1693926332132,0.38672406,25745.0,25744.0,0.78088]
[1693926332499,0.38672406,25745.0,25744.0,0.004]
[1693926334250,0.57303545,25745.0,25744.0,0.004]
[1693926334382,0.38822079,25745.0,25744.0,0.004]
[1693926334789,0.2019094,25745.0,25744.0,0.004]
[1693926335047,0.38822089,25745.0,25744.0,0.004]
[1693926336339,0.28846747,25745.0,25744.0,0.004]
[1693926336663,0.48498962,25745.0,25744.0,0.004]
[1693926336864,0.83749025,25745.0,25744.0,0.004]
[1693926337094,3.26803725,25745.0,25744.0,0.004]
[1693926338173,3.26803725,25745.0,25740.0,0.10778024]
[1693926338530,0.88027,25741.0,25740.0,0.10778024]
[1693926339187,1.239729,25741.0,25740.0,0.10778024]
[1693926340024,1.38738139,25741.0,25740.0,0.10778024]
[1693926340484,1.38738139,25741.0,25740.0,0.11678024]
[1693926340675,1.38738139,25741.0,25740.0,0.10778024]
[1693926341045,1.38938139,25741.0,25740.0,0.12578024]
[1693926341485,1.5757352,25741.0,25740.0,0.12578024]
[1693926341695,1.5757352,25741.0,25740.0,0.018]
[1693926342343,1.5767352,25741.0,25740.0,0.031]
[1693926342891,0.4403062,25741.0,25740.0,0.031]
[1693926346431,0.58003935,25741.0,25740.0,0.031]
[1693926346756,0.50861047,25741.0,25740.0,0.031]
[1693926347136,0.32225666,25741.0,25740.0,0.031]
[1693926347914,0.17460427,25741.0,25740.0,2.46057609]
[1693926349184,0.17460427,25741.0,25740.0,1.68357609]
[1693926350409,0.17460427,25741.0,25740.0,2.46057609]
[1693926350821,0.17460427,25741.0,25740.0,2.56387609]
[1693926354051,0.17460427,25741.0,25740.0,2.95052136]
[1693926354585,0.17460427,25741.0,25740.0,2.46057609]
[1693926354788,0.17460427,25741.0,25740.0,0.031]
[1693926354988,0.3007701,25741.0,25740.0,0.031]
[1693926355536,0.4040701,25741.0,25740.0,0.031]
[1693926356356,1.1810401,25741.0,25740.0,0.031]
[1693926356536,1.66081108,25741.0,25740.0,0.031]
[1693926357366,0.88384108,25741.0,25740.0,0.031]
[1693926357790,0.49719581,25741.0,25740.0,0.031]
[1693926357990,0.25416266,25741.0,25740.0,0.031]
[1693926359952,0.16103695,25741.0,25740.0,0.031]
[1693926360153,0.39385769,25741.0,25740.0,0.031]
[1693926362668,0.39385769,25741.0,25740.0,1.585]
[1693926362669,0.26769186,25741.0,25740.0,1.585]
[1693926363874,0.26769186,25741.0,25740.0,0.808]
[1693926364409,0.12800048,25741.0,25740.0,0.808]
[1693926364611,0.03487112,25741.0,25740.0,0.808]
[1693926365053,0.14662819,25741.0,25740.0,0.808]
[1693926365284,0.14662819,25741.0,25740.0,0.031]
[1693926366465,0.92359819,25741.0,25740.0,0.031]
[1693926367232,1.32338041,25741.0,25740.0,0.031]
[1693926367857,0.24992819,25741.0,25740.0,0.031]
[1693926368077,0.28636605,25741.0,25740.0,0.808]
[1693926368278,0.17460898,25741.0,25740.0,2.41627953]
[1693926368522,0.26777163,25741.0,25740.0,2.41627953]
[1693926368900,0.12803377,25741.0,25740.0,2.41627953]
[1693926369104,0.12803377,25741.0,25740.0,1.63927953]
[1693926369302,0.26777163,25741.0,25740.0,1.63927953]
[1693926370533,0.26777163,25741.0,25740.0,0.86227953]
[1693926370947,0.43600567,25741.0,25740.0,0.031]
[1693926371122,0.47486208,25741.0,25740.0,0.031]
[1693926371322,0.34284302,25741.0,25740.0,0.808]
[1693926371528,0.17460898,25741.0,25740.0,1.67733709]
[1693926371753,0.17460898,25741.0,25740.0,2.84098236]
[1693926371958,0.17460898,25741.0,25740.0,2.85194527]
[1693926372131,0.17460898,25741.0,25740.0,3.07199191]
[1693926372333,0.17460898,25741.0,25740.0,3.05717191]
[1693926372556,0.14273786,25741.0,25740.0,2.97401191]
[1693926372939,0.14273786,25741.0,25740.0,2.87071191]
[1693926373148,0.04,25748.0,25740.0,3.2526362]
[1693926373436,0.02012,25767.0,25765.0,0.02]
[1693926373649,0.64177197,25777.0,25768.0,0.1]
[1693926373912,0.64177197,25777.0,25773.0,0.04636158]
[1693926374089,0.64177197,25777.0,25776.0,0.45526158]
[1693926374299,0.64177197,25777.0,25776.0,2.08403]
[1693926374509,0.61677197,25777.0,25776.0,0.11525811]
[1693926374718,0.78121882,25777.0,25776.0,0.11525811]
[1693926374936,0.80164466,25777.0,25776.0,0.11525811]
[1693926375155,0.80164466,25777.0,25776.0,1.11908778]
[1693926375359,0.80164466,25777.0,25774.0,0.0002]
[1693926375360,0.80164466,25777.0,25774.0,1.11928778]
[1693926375567,0.1033,25776.0,25774.0,1.32298152]
[1693926375772,0.1033,25776.0,25775.0,1.11908778]
[1693926376216,0.03343842,25778.0,25777.0,0.16483293]
[1693926376458,0.13673842,25778.0,25777.0,0.16483293]
[1693926376668,0.13673842,25778.0,25777.0,1.28392071]
[1693926376876,0.43583838,25778.0,25777.0,1.28392071]
[1693926377056,0.13673842,25778.0,25777.0,1.28392071]
[1693926377475,0.16073842,25778.0,25777.0,1.28592071]
[1693926377701,0.14573842,25778.0,25777.0,1.28592071]
[1693926378114,0.05743842,25778.0,25777.0,1.28592071]
[1693926378499,0.05743842,25778.0,25777.0,1.09191107]
[1693926378857,0.03763842,25778.0,25777.0,0.89790143]
[1693926379881,0.03763842,25778.0,25777.0,0.70389179]
[1693926379882,0.26027143,25778.0,25777.0,0.70389179]
[1693926380313,0.23627143,25778.0,25777.0,0.70189179]
[1693926380542,0.01363842,25778.0,25775.0,0.15527]
[1693926380680,0.13696556,25778.0,25777.0,0.46296085]
[1693926380876,0.7758,25780.0,25779.0,0.00069582]
[1693926381249,1.57075707,25780.0,25778.0,0.08366858]
[1693926381451,0.38664527,25779.0,25778.0,0.08366858]
[1693926381653,1.01047354,25779.0,25778.0,0.08366858]
[1693926382082,1.01047354,25779.0,25777.0,0.45896085]
[1693926382856,1.01047354,25779.0,25776.0,0.41269853]
[1693926383056,0.77414527,25779.0,25776.0,0.41269853]
[1693926383263,0.1367,25777.0,25776.0,0.41269853]
[1693926384085,0.1367,25777.0,25776.0,0.41469853]
[1693926384496,0.1437,25777.0,25776.0,0.41469853]
[1693926384682,0.1437,25777.0,25776.0,0.41669853]
[1693926385952,0.31306703,25777.0,25776.0,0.41669853]
[1693926386658,0.1437,25777.0,25776.0,0.004]
[1693926386892,0.43219202,25777.0,25776.0,0.004]
[1693926387501,0.1437,25777.0,25776.0,0.004]
[1693926389642,0.68500338,25777.0,25776.0,0.004]
[1693926389844,0.08,25772.0,25767.0,0.04]
[1693926390041,0.1367,25768.0,25767.0,0.04]
[1693926390205,0.29135811,25768.0,25763.0,1.39854681]
[1693926390399,0.43395811,25767.0,25763.0,1.39854681]
[1693926391036,0.41395811,25767.0,25763.0,1.39854681]
[1693926391445,0.01880952,25766.0,25763.0,1.56686681]
[1693926391647,0.0188107,25766.0,25763.0,1.55386681]
[1693926392060,0.2633,25767.0,25763.0,0.19432]
[1693926392238,0.31636,25767.0,25764.0,0.3]
[1693926392578,0.28214659,25766.0,25764.0,0.3]
[1693926392927,0.28414659,25766.0,25764.0,0.3]
[1693926393384,0.002,25766.0,25763.0,0.18032]
[1693926393607,0.1367,25765.0,25763.0,0.18032]
[1693926393805,0.1367,25765.0,25763.0,0.20532]
[1693926394264,0.1367,25765.0,25763.0,0.15532]
[1693926394466,0.20427821,25765.0,25764.0,0.019]
[1693926394677,0.1367,25765.0,25764.0,0.018]
[1693926395099,0.025,25765.0,25763.0,0.15732]
[1693926395307,0.025,25765.0,25763.0,1.708888]
[1693926395308,0.29267226,25765.0,25763.0,1.708888]
[1693926395732,0.29667226,25765.0,25763.0,1.707888]
[1693926396139,0.30467226,25765.0,25764.0,0.001]
[1693926396560,0.49776949,25765.0,25764.0,0.001]
[1693926397120,0.43737226,25765.0,25764.0,0.001]
[1693926397325,0.42937226,25765.0,25763.0,0.15532]
[1693926397729,0.42937226,25765.0,25763.0,0.16832]
[1693926397730,0.27879703,25764.0,25763.0,0.16832]
[1693926398097,0.27879703,25764.0,25763.0,0.15932]
[1693926398550,0.27879703,25764.0,25760.0,0.776374]
[1693926398878,0.1367,25763.0,25760.0,1.552759]
[1693926399058,0.1367,25763.0,25760.0,2.329156]
[1693926399215,0.002,25764.0,25760.0,2.484495]
[1693926400207,0.001,25764.0,25760.0,2.484495]
[1693926400410,0.001,25764.0,25760.0,2.8477914]
[1693926400610,0.005,25764.0,25760.0,2.8477914]
[1693926400813,0.004,25764.0,25760.0,2.8477914]
[1693926401016,0.24157187,25764.0,25760.0,2.8477914]
[1693926401219,0.002,25763.0,25760.0,2.8907914]
[1693926401623,0.24357187,25764.0,25760.0,2.8728914]
[1693926401819,0.24357187,25764.0,25763.0,0.006]
[1693926402233,0.23423176,25764.0,25763.0,0.006]
[1693926402435,0.002,25764.0,25763.0,0.006]
[1693926402640,0.1965,25764.0,25763.0,0.006]
[1693926403044,0.46130938,25764.0,25763.0,0.006]
[1693926403272,0.54056032,25764.0,25763.0,0.006]
[1693926403473,0.53856032,25764.0,25763.0,0.006]
[1693926403680,0.45930938,25764.0,25763.0,0.006]
[1693926403897,0.46030938,25764.0,25763.0,0.015]
[1693926404352,0.47230938,25764.0,25763.0,0.007]
[1693926404494,0.45930938,25764.0,25763.0,0.006]
[1693926404873,0.50530938,25764.0,25763.0,0.01]
[1693926407605,0.046,25764.0,25763.0,0.786307]
[1693926408025,0.046,25764.0,25763.0,1.562614]
[1693926409606,0.046,25764.0,25763.0,0.786307]
[1693926410127,0.1486,25764.0,25763.0,0.786307]
[1693926410324,0.1486,25764.0,25763.0,0.01]
[1693926411758,0.50546728,25764.0,25763.0,0.01]
[1693926411997,0.44456236,25764.0,25763.0,0.01]
[1693926412734,1e-08,25764.0,25763.0,0.01]
[1693926413137,0.10260001,25764.0,25763.0,0.01]
[1693926413894,0.12260001,25764.0,25763.0,0.01]
[1693926414103,0.33900671,25764.0,25763.0,0.01]
[1693926415424,0.12260001,25764.0,25763.0,0.01]
[1693926416398,0.50924528,25764.0,25763.0,0.01]
[1693926416636,0.50924528,25764.0,25763.0,0.004]
[1693926416795,0.50924527,25764.0,25763.0,0.004]
[1693926416991,2.06179727,25764.0,25763.0,0.004]
[1693926417249,2.67437294,25764.0,25763.0,0.004]
[1693926417460,2.394502,25764.0,25763.0,0.004]
[1693926417655,2.394502,25764.0,25763.0,0.002]
[1693926417871,0.02,25762.0,25760.0,0.0001]
[1693926418099,0.4096,25761.0,25760.0,0.0001]
[1693926418303,1.19409093,25761.0,25760.0,0.0001]
[1693926418438,1.33984527,25761.0,25760.0,0.0001]
[1693926419186,2.11621227,25761.0,25760.0,0.0001]
[1693926419359,2.12821227,25761.0,25760.0,0.0011]
[1693926419523,2.90457927,25761.0,25760.0,0.0011]
[1693926419793,3.29122454,25761.0,25760.0,0.0011]
[1693926420007,3.30722454,25761.0,25760.0,0.0031]
[1693926420206,4.08359154,25761.0,25760.0,0.46223041]
[1693926420338,4.06759154,25761.0,25760.0,0.59831703]
[1693926420539,4.06759154,25761.0,25760.0,0.13918662]
[1693926420835,4.06759154,25761.0,25760.0,0.59931703]
[1693926420836,4.07959154,25761.0,25760.0,0.59931703]
[1693926421037,4.07959154,25761.0,25760.0,0.0021]
[1693926421163,4.10359154,25761.0,25760.0,0.0021]
[1693926421383,4.10359154,25761.0,25760.0,0.41635987]
[1693926421384,4.07959154,25761.0,25760.0,0.41635987]
[1693926421804,1.6132959,25761.0,25760.0,0.41635987]
[1693926422213,1.6132959,25761.0,25760.0,0.0001]
[1693926422214,1.5892959,25761.0,25760.0,0.0001]
[1693926422534,1.6132959,25761.0,25760.0,0.0021]
[1693926425396,1.6132959,25761.0,25760.0,0.1121]
[1693926426081,1.0012,25761.0,25760.0,0.1121]
[1693926426292,0.3207,25761.0,25760.0,1.664894]
[1693926426497,0.3207,25761.0,25760.0,2.441291]
[1693926427151,0.3207,25761.0,25760.0,2.90037509]
[1693926427587,0.3207,25761.0,25760.0,2.12397809]
[1693926427791,0.3207,25761.0,25760.0,0.57118409]
[1693926427792,0.6310313,25761.0,25760.0,0.57118409]
[1693926427967,0.6070313,25761.0,25760.0,0.57118409]
[1693926428117,0.5830313,25761.0,25760.0,0.56918409]
[1693926428320,0.3103313,25761.0,25760.0,0.56918409]
[1693926428521,0.3343313,25761.0,25760.0,0.57118409]
[1693926428859,0.3583313,25761.0,25760.0,0.57118409]
[1693926429073,0.3103313,25761.0,25760.0,0.56918409]
[1693926429450,0.3353313,25761.0,25760.0,0.57118409]
[1693926433251,0.3353313,25761.0,25760.0,0.1121]
[1693926433476,0.27496511,25761.0,25760.0,0.43690897]
[1693926433688,0.27496511,25761.0,25760.0,0.57118409]
[1693926434144,0.025,25761.0,25760.0,0.57118409]
[1693926434591,0.025,25761.0,25760.0,0.1121]
[1693926434765,0.025,25761.0,25760.0,1.664894]
[1693926435741,0.009,25761.0,25760.0,1.662894]
[1693926435919,0.007,25761.0,25760.0,1.663894]
[1693926436128,0.007,25761.0,25760.0,1.664894]
[1693926440535,0.195,25762.0,25760.0,1.663894]
[1693926441014,0.195,25762.0,25760.0,1.665894]
[1693926441419,0.195,25762.0,25760.0,1.663894]
[1693926441578,0.202,25762.0,25760.0,1.663894]
[1693926441751,0.001,25761.0,25760.0,1.667894]
[1693926442460,0.001,25761.0,25760.0,2.71291685]
[1693926442676,0.007,25762.0,25760.0,2.542891]
[1693926442879,0.007,25762.0,25760.0,2.440291]
[1693926443091,0.007,25762.0,25760.0,2.441291]
[1693926443297,0.007,25762.0,25760.0,2.82693627]
[1693926443499,0.007,25762.0,25761.0,0.87066527]
[1693926443712,0.007,25762.0,25761.0,3.18944627]
[1693926443885,0.007,25762.0,25761.0,3.18878627]
[1693926444136,0.3933693,25768.0,25761.0,3.18602627]
[1693926444313,0.3933693,25768.0,25762.0,0.21785811]
[1693926444446,0.5878693,25768.0,25763.0,3.405132]
[1693926444655,0.81200027,25768.0,25763.0,3.52039011]
[1693926445087,0.83600027,25768.0,25763.0,3.52039011]
[1693926445288,0.43273097,25768.0,25763.0,3.57687627]
[1693926445497,0.43273097,25768.0,25763.0,3.73220327]
[1693926445700,0.38473097,25768.0,25763.0,3.67571711]
[1693926445952,0.40873097,25768.0,25763.0,3.67871711]
[1693926446156,0.43273097,25768.0,25763.0,3.67871711]
[1693926446368,0.43273097,25768.0,25763.0,3.563459]
[1693926446560,0.52583675,25768.0,25763.0,3.563459]
[1693926447322,0.52583675,25768.0,25763.0,3.561459]
[1693926447323,0.804172,25768.0,25763.0,3.561459]
[1693926447525,0.828172,25768.0,25763.0,3.563459]
[1693926447872,0.804172,25768.0,25763.0,3.562459]
[1693926448023,0.62551389,25768.0,25763.0,3.560459]
[1693926448229,0.64951389,25768.0,25763.0,3.561459]
[1693926448480,0.09310578,25767.0,25763.0,3.67871711]
[1693926448801,0.09310578,25767.0,25763.0,3.563459]
[1693926449346,0.09310578,25767.0,25763.0,3.561459]
[1693926449949,0.09310578,25767.0,25763.0,3.560459]
[1693926450464,0.09310578,25767.0,25763.0,3.5437001]
[1693926450667,0.11710578,25767.0,25763.0,3.262459]
[1693926450908,0.44947616,25767.0,25763.0,3.262459]
[1693926451110,0.29481805,25767.0,25763.0,3.262459]
[1693926451315,0.28022247,25766.0,25763.0,3.262459]
[1693926451529,0.43558072,25766.0,25763.0,3.262459]
[1693926451729,0.43558072,25766.0,25763.0,3.263459]
[1693926452142,0.38282247,25766.0,25763.0,3.263459]
[1693926452582,0.38282247,25766.0,25763.0,3.264459]
[1693926452583,0.017,25766.0,25763.0,3.264459]
[1693926452995,0.026,25766.0,25763.0,3.265459]
[1693926453152,0.026,25766.0,25764.0,0.1026]
[1693926453347,0.026,25766.0,25765.0,2.328738]
[1693926453901,0.009,25766.0,25765.0,2.328738]
[1693926454529,0.009,25766.0,25765.0,2.7677313]
[1693926454732,0.009,25766.0,25765.0,2.431338]
[1693926454908,0.2697,25769.0,25765.0,2.431338]
[1693926455128,0.2697,25769.0,25767.0,0.1026]
[1693926455350,1.28698282,25772.0,25768.0,2.328468]
[1693926455578,0.62958658,25771.0,25768.0,2.44372611]
[1693926455774,0.62958658,25771.0,25768.0,1.552312]
[1693926456108,0.72259873,25771.0,25768.0,1.552312]
[1693926456312,0.001,25769.0,25768.0,1.552312]
[1693926456657,0.72259873,25771.0,25768.0,1.552312]
[1693926456833,1.06610266,25771.0,25768.0,1.552312]
[1693926457823,1.06610266,25771.0,25768.0,1.554312]
[1693926458024,1.09010266,25771.0,25768.0,1.555312]
[1693926458268,1.09010266,25771.0,25768.0,1.553312]
[1693926458708,1.11410266,25771.0,25768.0,1.555312]
[1693926458921,0.17888019,25770.0,25768.0,1.555312]
[1693926459435,0.55641215,25771.0,25768.0,1.67057011]
[1693926459680,0.14101215,25771.0,25770.0,0.1026]
[1693926459892,0.048,25771.0,25770.0,3.206984]
[1693926460101,0.024,25771.0,25770.0,3.206984]
[1693926460312,0.024,25771.0,25770.0,3.53940821]
[1693926460530,0.02,25777.0,25770.0,3.53940821]
[1693926460531,0.26121298,25778.0,25772.0,0.5089]
[1693926460742,0.26121298,25778.0,25775.0,0.1026]
[1693926460946,0.26121298,25778.0,25776.0,1.66708811]
[1693926461165,0.26121298,25778.0,25776.0,2.327745]
[1693926461371,0.51091298,25778.0,25776.0,2.327745]